[Event "Titled Tuesday Blitz June 6 Late 2023"]
[White "Sargsyan, Anna M."]
[Black "Szyszylo, Rafal"]
[WhiteFideId "13308130"]
[BlackFideId "1109626"]
[WhiteElo "2284"]
[BlackElo "1951"]
[Result "1-0"]
[Round "4"]
[TimeControl "180+2"]
[Date "2023.06.07"]
[WhiteClock "0:01:20"]
[BlackClock "0:00:03"]
[Board "94"]

1. d4 {[%clk 0:02:52]}  d6 {[%clk 0:03:00]} 2. c4 {[%clk 0:02:52]}  g6 {[%clk 0:03:00]} 3. g3 {[%clk 0:02:48]}  Nf6 {[%clk 0:03:00]} 4. Bg2 {[%clk 0:02:49]}  Bg7 {[%clk 0:03:00]} 5. Nc3 {[%clk 0:02:49]}  O-O {[%clk 0:03:01]} 6. Nf3 {[%clk 0:02:50]}  c6 {[%clk 0:03:02]} 7. O-O {[%clk 0:02:51]}  Qb6 {[%clk 0:03:02]} 8. e4 {[%clk 0:02:50]}  Bg4 {[%clk 0:02:59]} 9. h3 {[%clk 0:02:49]}  Bxf3 {[%clk 0:02:59]} 10. Bxf3 {[%clk 0:02:50]}  Nfd7 {[%clk 0:02:52]} 11. Be3 {[%clk 0:02:50]}  Qxb2 {[%clk 0:02:51]} 12. Qd3 {[%clk 0:02:38]}  Qa3 {[%clk 0:02:47]} 13. Rab1 {[%clk 0:02:36]}  Qa6 {[%clk 0:02:43]} 14. Be2 {[%clk 0:02:33]}  c5 {[%clk 0:02:39]} 15. Nb5 {[%clk 0:02:31]}  Qc6 {[%clk 0:02:29]} 16. d5 {[%clk 0:02:25]}  Qc8 {[%clk 0:02:27]} 17. f4 {[%clk 0:02:25]}  Nf6 {[%clk 0:02:16]} 18. Kh2 {[%clk 0:02:15]}  a6 {[%clk 0:02:15]} 19. Nc3 {[%clk 0:02:15]}  Nbd7 {[%clk 0:02:07]} 20. g4 {[%clk 0:02:14]}  Rb8 {[%clk 0:02:05]} 21. g5 {[%clk 0:02:12]}  Ne8 {[%clk 0:01:59]} 22. h4 {[%clk 0:02:11]}  Nc7 {[%clk 0:01:35]} 23. h5 {[%clk 0:02:10]}  e6 {[%clk 0:01:35]} 24. dxe6 {[%clk 0:02:09]}  Nxe6 {[%clk 0:01:35]} 25. Nd5 {[%clk 0:02:08]}  Re8 {[%clk 0:01:30]} 26. Kg3 {[%clk 0:02:02]}  Nd4 {[%clk 0:01:29]} 27. Bg4 {[%clk 0:02:01]}  Qc6 {[%clk 0:01:23]} 28. Rh1 {[%clk 0:01:59]}  Nf8 {[%clk 0:01:21]} 29. hxg6 {[%clk 0:01:55]}  fxg6 {[%clk 0:00:57]} 30. Rb6 {[%clk 0:01:45]}  Qa4 {[%clk 0:00:52]} 31. Rxd6 {[%clk 0:01:45]}  Qxa2 {[%clk 0:00:22]} 32. e5 {[%clk 0:01:41]}  b5 {[%clk 0:00:14]} 33. cxb5 {[%clk 0:01:28]}  Rxb5 {[%clk 0:00:12]} 34. Nc3 {[%clk 0:01:27]}  Rb3 {[%clk 0:00:10]} 35. Qc4+ {[%clk 0:01:20]}  Kh8 {[%clk 0:00:03]} 36. Nxa2 {[%clk 0:01:20]}  Rxe3+ {[%clk 0:00:03]} 37. Kf2 {[%clk 0:01:20]} 1-0


[Site "https://www.chess.com"]

[Event "Titled Tuesday Blitz June 6 Late 2023"]
[White "Amanov, Zhanibek"]
[Black "Trifan, Andrei Ioan"]
[WhiteFideId "13700189"]
[BlackFideId "12967068"]
[WhiteElo "2134"]
[BlackElo "2208"]
[Result "0-1"]
[Round "4"]
[TimeControl "180+2"]
[Date "2023.06.07"]
[WhiteClock "0:00:03"]
[BlackClock "0:01:07"]
[Board "95"]

1. e4 {[%clk 0:03:00]}  e5 {[%clk 0:02:59]} 2. Nf3 {[%clk 0:03:01]}  Nc6 {[%clk 0:02:57]} 3. Bc4 {[%clk 0:03:01]}  Bc5 {[%clk 0:02:56]} 4. O-O {[%clk 0:03:01]}  d6 {[%clk 0:02:53]} 5. c3 {[%clk 0:03:01]}  Nf6 {[%clk 0:02:53]} 6. d4 {[%clk 0:03:01]}  Bb6 {[%clk 0:02:53]} 7. dxe5 {[%clk 0:02:25]}  dxe5 {[%clk 0:02:54]} 8. Qxd8+ {[%clk 0:02:24]}  Nxd8 {[%clk 0:02:55]} 9. Nxe5 {[%clk 0:02:23]}  Nxe4 {[%clk 0:02:54]} 10. Nd2 {[%clk 0:02:11]}  Nxd2 {[%clk 0:02:50]} 11. Bxd2 {[%clk 0:02:12]}  Be6 {[%clk 0:02:51]} 12. Rfe1 {[%clk 0:02:08]}  O-O {[%clk 0:02:43]} 13. Bg5 {[%clk 0:01:57]}  f6 {[%clk 0:02:24]} 14. Bxe6+ {[%clk 0:01:08]}  Nxe6 {[%clk 0:02:25]} 15. Nd7 {[%clk 0:01:08]}  Nxg5 {[%clk 0:02:21]} 16. Nxf8 {[%clk 0:01:08]}  Kxf8 {[%clk 0:02:22]} 17. Rad1 {[%clk 0:01:07]}  Re8 {[%clk 0:02:20]} 18. Kf1 {[%clk 0:01:04]}  Rxe1+ {[%clk 0:02:18]} 19. Rxe1 {[%clk 0:01:05]}  Kf7 {[%clk 0:02:14]} 20. Rd1 {[%clk 0:01:04]}  Ne4 {[%clk 0:02:09]} 21. Rd7+ {[%clk 0:00:54]}  Kg6 {[%clk 0:02:04]} 22. f3 {[%clk 0:00:54]}  Nc5 {[%clk 0:02:03]} 23. Rd8 {[%clk 0:00:54]}  Na4 {[%clk 0:02:01]} 24. Rd2 {[%clk 0:00:55]}  Nc5 {[%clk 0:01:57]} 25. Ke2 {[%clk 0:00:53]}  Kf5 {[%clk 0:01:53]} 26. g3 {[%clk 0:00:42]}  Ke6 {[%clk 0:01:52]} 27. Rd8 {[%clk 0:00:38]}  Na4 {[%clk 0:01:48]} 28. Rd2 {[%clk 0:00:35]}  h5 {[%clk 0:01:43]} 29. Kd3 {[%clk 0:00:32]}  Nc5+ {[%clk 0:01:42]} 30. Kc4 {[%clk 0:00:32]}  Nd7 {[%clk 0:01:42]} 31. Re2+ {[%clk 0:00:29]}  Kf7 {[%clk 0:01:38]} 32. Kd3 {[%clk 0:00:29]}  Ne5+ {[%clk 0:01:37]} 33. Ke4 {[%clk 0:00:27]}  g5 {[%clk 0:01:36]} 34. f4 {[%clk 0:00:23]}  gxf4 {[%clk 0:01:32]} 35. Kxf4 {[%clk 0:00:23]}  Bc5 {[%clk 0:01:27]} 36. Kf5 {[%clk 0:00:21]}  Bd6 {[%clk 0:01:27]} 37. h3 {[%clk 0:00:18]}  Nf3 {[%clk 0:01:18]} 38. g4 {[%clk 0:00:15]}  Nh4+ {[%clk 0:01:19]} 39. Ke4 {[%clk 0:00:15]}  hxg4 {[%clk 0:01:19]} 40. hxg4 {[%clk 0:00:15]}  Kg6 {[%clk 0:01:20]} 41. Rf2 {[%clk 0:00:09]}  Kg5 {[%clk 0:01:19]} 42. Rf1 {[%clk 0:00:09]}  Be5 {[%clk 0:01:16]} 43. Rg1 {[%clk 0:00:07]}  Ng6 {[%clk 0:01:14]} 44. Kf3 {[%clk 0:00:05]}  Bd6 {[%clk 0:01:12]} 45. Rg2 {[%clk 0:00:02]}  Ne5+ {[%clk 0:01:13]} 46. Ke4 {[%clk 0:00:02]}  Nxg4 {[%clk 0:01:12]} 47. Kf3 {[%clk 0:00:03]}  f5 {[%clk 0:01:12]} 48. Re2 {[%clk 0:00:04]}  Ne5+ {[%clk 0:01:12]} 49. Kg2 {[%clk 0:00:03]}  f4 {[%clk 0:01:11]} 50. Rd2 {[%clk 0:00:04]}  Kg4 {[%clk 0:01:09]} 51. Rd4 {[%clk 0:00:03]}  Ng6 {[%clk 0:01:07]} 52. c4 {[%clk 0:00:03]}  Nh4+ {[%clk 0:01:07]} 53. Kf1 {[%clk 0:00:03]}  Nf5 {[%clk 0:01:07]} 54. Rd5 {[%clk 0:00:03]}  Ne3+ {[%clk 0:01:07]} 0-1


[Site "https://www.chess.com"]

[Event "Titled Tuesday Blitz June 6 Late 2023"]
[White "Torres Dominguez, David"]
[Black "Urbina Perez, Juan Antonio"]
[WhiteFideId "2220857"]
[BlackFideId "2217368"]
[WhiteElo "1999"]
[BlackElo "2197"]
[Result "1/2-1/2"]
[Round "4"]
[TimeControl "180+2"]
[Date "2023.06.07"]
[WhiteClock "0:00:25"]
[BlackClock "0:00:35"]
[Board "100"]

1. e4 {[%clk 0:02:55]}  e6 {[%clk 0:02:57]} 2. d4 {[%clk 0:02:55]}  d5 {[%clk 0:02:58]} 3. exd5 {[%clk 0:02:56]}  exd5 {[%clk 0:02:57]} 4. Bd3 {[%clk 0:02:57]}  Nf6 {[%clk 0:02:57]} 5. Nf3 {[%clk 0:02:56]}  Bd6 {[%clk 0:02:50]} 6. O-O {[%clk 0:02:56]}  O-O {[%clk 0:02:50]} 7. h3 {[%clk 0:02:57]}  c6 {[%clk 0:02:47]} 8. Re1 {[%clk 0:02:55]}  Re8 {[%clk 0:02:47]} 9. Ne5 {[%clk 0:02:55]}  Nbd7 {[%clk 0:02:44]} 10. Nxd7 {[%clk 0:02:39]}  Bxd7 {[%clk 0:02:41]} 11. Rxe8+ {[%clk 0:02:34]}  Qxe8 {[%clk 0:02:42]} 12. Nc3 {[%clk 0:02:28]}  h6 {[%clk 0:02:39]} 13. Bd2 {[%clk 0:02:25]}  Qe7 {[%clk 0:02:32]} 14. Qf3 {[%clk 0:02:24]}  Re8 {[%clk 0:02:32]} 15. Re1 {[%clk 0:02:22]}  Qd8 {[%clk 0:02:32]} 16. Rxe8+ {[%clk 0:02:18]}  Bxe8 {[%clk 0:02:29]} 17. a3 {[%clk 0:02:14]}  Qe7 {[%clk 0:02:28]} 18. Qe2 {[%clk 0:02:07]}  Kf8 {[%clk 0:02:25]} 19. Qxe7+ {[%clk 0:02:06]}  Kxe7 {[%clk 0:02:26]} 20. f3 {[%clk 0:02:07]}  Bd7 {[%clk 0:02:16]} 21. Kf2 {[%clk 0:02:07]}  Ne8 {[%clk 0:02:15]} 22. Ne2 {[%clk 0:02:07]}  Nc7 {[%clk 0:02:14]} 23. Bf4 {[%clk 0:02:06]}  Ne6 {[%clk 0:02:13]} 24. Bxd6+ {[%clk 0:02:05]}  Kxd6 {[%clk 0:02:14]} 25. c3 {[%clk 0:02:06]}  b6 {[%clk 0:02:13]} 26. Bf5 {[%clk 0:02:03]}  Nc7 {[%clk 0:02:10]} 27. Bd3 {[%clk 0:02:03]}  c5 {[%clk 0:02:08]} 28. Ke3 {[%clk 0:02:01]}  g6 {[%clk 0:02:05]} 29. Bc2 {[%clk 0:01:56]}  c4 {[%clk 0:02:02]} 30. h4 {[%clk 0:01:55]}  b5 {[%clk 0:02:00]} 31. g4 {[%clk 0:01:51]}  a5 {[%clk 0:01:59]} 32. Ng3 {[%clk 0:01:39]}  b4 {[%clk 0:01:51]} 33. axb4 {[%clk 0:01:39]}  axb4 {[%clk 0:01:52]} 34. cxb4 {[%clk 0:01:39]}  Na6 {[%clk 0:01:52]} 35. b5 {[%clk 0:01:35]}  Bxb5 {[%clk 0:01:46]} 36. h5 {[%clk 0:01:34]}  Be8 {[%clk 0:01:46]} 37. g5 {[%clk 0:01:27]}  Ke7 {[%clk 0:01:31]} 38. gxh6 {[%clk 0:01:26]}  Kf8 {[%clk 0:01:31]} 39. hxg6 {[%clk 0:01:25]}  fxg6 {[%clk 0:01:31]} 40. Ne2 {[%clk 0:01:18]}  Nb4 {[%clk 0:01:29]} 41. Bb1 {[%clk 0:01:17]}  Kg8 {[%clk 0:01:27]} 42. Nf4 {[%clk 0:01:16]}  Kh7 {[%clk 0:01:27]} 43. Kd2 {[%clk 0:01:09]}  Bf7 {[%clk 0:01:26]} 44. Kc3 {[%clk 0:01:04]}  Nc6 {[%clk 0:01:26]} 45. Ba2 {[%clk 0:01:01]}  Kxh6 {[%clk 0:01:25]} 46. b3 {[%clk 0:00:48]}  cxb3 {[%clk 0:01:22]} 47. Bxb3 {[%clk 0:00:49]}  Ne7 {[%clk 0:01:21]} 48. Kd3 {[%clk 0:00:48]}  Kg5 {[%clk 0:01:21]} 49. Ng2 {[%clk 0:00:46]}  Kf5 {[%clk 0:01:19]} 50. Bc2 {[%clk 0:00:45]}  Kg5 {[%clk 0:01:16]} 51. Ke3 {[%clk 0:00:45]}  Nc6 {[%clk 0:01:07]} 52. Bb1 {[%clk 0:00:37]}  Ne7 {[%clk 0:01:05]} 53. Bc2 {[%clk 0:00:37]}  Nc8 {[%clk 0:01:03]} 54. Bd1 {[%clk 0:00:36]}  Nd6 {[%clk 0:01:02]} 55. f4+ {[%clk 0:00:37]}  Kf6 {[%clk 0:00:59]} 56. Bc2 {[%clk 0:00:35]}  Nc4+ {[%clk 0:00:59]} 57. Kf3 {[%clk 0:00:34]}  Na5 {[%clk 0:00:49]} 58. Ne3 {[%clk 0:00:33]}  Nc6 {[%clk 0:00:48]} 59. Ng4+ {[%clk 0:00:31]}  Ke7 {[%clk 0:00:45]} 60. Ke3 {[%clk 0:00:32]}  Nb4 {[%clk 0:00:44]} 61. Bb1 {[%clk 0:00:31]}  Be8 {[%clk 0:00:44]} 62. Ne5 {[%clk 0:00:31]}  Kf6 {[%clk 0:00:43]} 63. Ng4+ {[%clk 0:00:29]}  Ke6 {[%clk 0:00:40]} 64. Ne5 {[%clk 0:00:30]}  Kf6 {[%clk 0:00:39]} 65. Ng4+ {[%clk 0:00:30]}  Ke6 {[%clk 0:00:37]} 66. Ne5 {[%clk 0:00:25]}  Kf6 {[%clk 0:00:35]} 1/2-1/2


[Site "https://www.chess.com"]

[Event "Titled Tuesday Blitz June 6 Late 2023"]
[White "Do Valle Cardoso, Lucas"]
[Black "Ansh M Shah"]
[WhiteFideId "2163144"]
[BlackFideId "25033379"]
[WhiteElo "2364"]
[BlackElo "2084"]
[Result "1-0"]
[Round "4"]
[TimeControl "180+2"]
[Date "2023.06.07"]
[WhiteClock "0:00:22"]
[BlackClock "0:00:03"]
[Board "102"]

1. e4 {[%clk 0:03:00]}  c6 {[%clk 0:03:00]} 2. d4 {[%clk 0:03:00]}  d5 {[%clk 0:03:00]} 3. Nc3 {[%clk 0:03:01]}  dxe4 {[%clk 0:02:59]} 4. Nxe4 {[%clk 0:03:02]}  Bf5 {[%clk 0:02:59]} 5. Ng3 {[%clk 0:03:03]}  Bg6 {[%clk 0:03:00]} 6. h4 {[%clk 0:03:03]}  h6 {[%clk 0:03:00]} 7. h5 {[%clk 0:03:04]}  Bh7 {[%clk 0:03:00]} 8. Nf3 {[%clk 0:03:05]}  Nd7 {[%clk 0:03:00]} 9. Bd3 {[%clk 0:03:06]}  Bxd3 {[%clk 0:03:00]} 10. Qxd3 {[%clk 0:03:07]}  e6 {[%clk 0:03:01]} 11. Bd2 {[%clk 0:03:08]}  Ngf6 {[%clk 0:03:01]} 12. O-O-O {[%clk 0:03:09]}  Be7 {[%clk 0:03:02]} 13. Ne4 {[%clk 0:03:09]}  Nxe4 {[%clk 0:03:02]} 14. Qxe4 {[%clk 0:03:10]}  Nf6 {[%clk 0:03:03]} 15. Qe2 {[%clk 0:03:11]}  Qd5 {[%clk 0:03:04]} 16. Kb1 {[%clk 0:03:11]}  Qe4 {[%clk 0:03:04]} 17. Be3 {[%clk 0:03:12]}  b5 {[%clk 0:02:55]} 18. Ne5 {[%clk 0:03:11]}  O-O {[%clk 0:02:49]} 19. f3 {[%clk 0:03:07]}  Qd5 {[%clk 0:02:48]} 20. g4 {[%clk 0:03:07]}  c5 {[%clk 0:02:48]} 21. Rhg1 {[%clk 0:02:40]}  Nh7 {[%clk 0:02:36]} 22. Qxb5 {[%clk 0:02:31]}  Rab8 {[%clk 0:02:28]} 23. Nc6 {[%clk 0:02:27]}  Bd6 {[%clk 0:02:18]} 24. Nxb8 {[%clk 0:02:26]}  Rxb8 {[%clk 0:02:19]} 25. Qa5 {[%clk 0:01:20]}  c4 {[%clk 0:01:38]} 26. Qxd5 {[%clk 0:01:16]}  exd5 {[%clk 0:01:39]} 27. c3 {[%clk 0:00:55]}  Ng5 {[%clk 0:01:29]} 28. Bxg5 {[%clk 0:00:53]}  hxg5 {[%clk 0:01:30]} 29. Kc2 {[%clk 0:00:52]}  a5 {[%clk 0:01:28]} 30. b3 {[%clk 0:00:49]}  Rc8 {[%clk 0:01:25]} 31. Rge1 {[%clk 0:00:45]}  Kf8 {[%clk 0:01:20]} 32. Rb1 {[%clk 0:00:40]}  cxb3+ {[%clk 0:01:10]} 33. axb3 {[%clk 0:00:37]}  Bc7 {[%clk 0:00:38]} 34. Kd3 {[%clk 0:00:36]}  Bf4 {[%clk 0:00:33]} 35. Ra1 {[%clk 0:00:32]}  Ra8 {[%clk 0:00:32]} 36. Ra4 {[%clk 0:00:31]}  Kg8 {[%clk 0:00:09]} 37. b4 {[%clk 0:00:30]}  Rb8 {[%clk 0:00:06]} 38. Rxa5 {[%clk 0:00:30]}  Rc8 {[%clk 0:00:05]} 39. Rxd5 {[%clk 0:00:29]}  Ra8 {[%clk 0:00:06]} 40. Ra5 {[%clk 0:00:30]}  Rc8 {[%clk 0:00:06]} 41. c4 {[%clk 0:00:29]}  Rb8 {[%clk 0:00:05]} 42. b5 {[%clk 0:00:29]}  Rd8 {[%clk 0:00:04]} 43. c5 {[%clk 0:00:26]}  Bg3 {[%clk 0:00:03]} 44. Re2 {[%clk 0:00:22]} 1-0


[Site "https://www.chess.com"]

[Event "Titled Tuesday Blitz June 6 Late 2023"]
[White "Belov, Alexei"]
[Black "Dedona, Mark"]
[WhiteFideId "4128206"]
[BlackFideId "30920256"]
[WhiteElo "2638"]
[BlackElo "2074"]
[Result "1/2-1/2"]
[Round "4"]
[TimeControl "180+2"]
[Date "2023.06.07"]
[WhiteClock "0:00:21"]
[BlackClock "0:00:16"]
[Board "103"]

1. e4 {[%clk 0:03:00]}  c5 {[%clk 0:02:59]} 2. Nf3 {[%clk 0:03:00]}  d6 {[%clk 0:02:59]} 3. d4 {[%clk 0:03:00]}  cxd4 {[%clk 0:02:59]} 4. Nxd4 {[%clk 0:03:01]}  Nf6 {[%clk 0:03:00]} 5. Nc3 {[%clk 0:03:01]}  a6 {[%clk 0:03:00]} 6. Be2 {[%clk 0:03:01]}  e5 {[%clk 0:02:57]} 7. Nb3 {[%clk 0:03:01]}  Be7 {[%clk 0:02:56]} 8. O-O {[%clk 0:03:01]}  Be6 {[%clk 0:02:57]} 9. f4 {[%clk 0:03:00]}  exf4 {[%clk 0:02:56]} 10. Bxf4 {[%clk 0:02:59]}  O-O {[%clk 0:02:55]} 11. Qe1 {[%clk 0:03:00]}  Nbd7 {[%clk 0:02:54]} 12. Rd1 {[%clk 0:02:59]}  Qc7 {[%clk 0:02:53]} 13. Qg3 {[%clk 0:02:57]}  Ne5 {[%clk 0:02:45]} 14. Kh1 {[%clk 0:02:57]}  Rad8 {[%clk 0:02:43]} 15. Nd4 {[%clk 0:02:56]}  Ng6 {[%clk 0:02:41]} 16. Bg5 {[%clk 0:02:53]}  h6 {[%clk 0:02:30]} 17. Bxf6 {[%clk 0:02:50]}  Bxf6 {[%clk 0:02:21]} 18. Rxf6 {[%clk 0:02:49]}  gxf6 {[%clk 0:02:18]} 19. Nf5 {[%clk 0:02:50]}  Kh7 {[%clk 0:02:07]} 20. Qh3 {[%clk 0:02:43]}  Bxf5 {[%clk 0:02:05]} 21. exf5 {[%clk 0:02:43]}  Nf4 {[%clk 0:02:04]} 22. Qf3 {[%clk 0:02:38]}  Nxe2 {[%clk 0:02:04]} 23. Qxe2 {[%clk 0:02:38]}  d5 {[%clk 0:01:56]} 24. Nxd5 {[%clk 0:02:36]}  Qe5 {[%clk 0:01:53]} 25. Qf3 {[%clk 0:02:28]}  Rd6 {[%clk 0:01:49]} 26. h3 {[%clk 0:02:25]}  Rfd8 {[%clk 0:01:48]} 27. c4 {[%clk 0:02:24]}  b5 {[%clk 0:01:43]} 28. b3 {[%clk 0:02:23]}  bxc4 {[%clk 0:01:43]} 29. bxc4 {[%clk 0:02:23]}  a5 {[%clk 0:01:40]} 30. Qh5 {[%clk 0:02:17]}  Kg7 {[%clk 0:01:30]} 31. Rd3 {[%clk 0:01:54]}  Rxd5 {[%clk 0:01:26]} 32. cxd5 {[%clk 0:01:49]}  Rxd5 {[%clk 0:01:27]} 33. Rxd5 {[%clk 0:01:43]}  Qxd5 {[%clk 0:01:27]} 34. Qg4+ {[%clk 0:01:43]}  Kh7 {[%clk 0:01:27]} 35. a4 {[%clk 0:01:43]}  Qc5 {[%clk 0:01:22]} 36. Qe4 {[%clk 0:01:34]}  Qe5 {[%clk 0:01:06]} 37. Qc4 {[%clk 0:01:23]}  Qe1+ {[%clk 0:00:58]} 38. Kh2 {[%clk 0:01:22]}  Qe5+ {[%clk 0:00:58]} 39. Kg1 {[%clk 0:01:21]}  Qe1+ {[%clk 0:00:58]} 40. Qf1 {[%clk 0:01:20]}  Qb4 {[%clk 0:00:57]} 41. Qd1 {[%clk 0:01:17]}  Qc5+ {[%clk 0:00:55]} 42. Kh1 {[%clk 0:01:17]}  Qxf5 {[%clk 0:00:55]} 43. Qb3 {[%clk 0:01:04]}  Qf1+ {[%clk 0:00:48]} 44. Kh2 {[%clk 0:01:04]}  Qf4+ {[%clk 0:00:49]} 45. Kh1 {[%clk 0:01:04]}  Kg7 {[%clk 0:00:49]} 46. Kg1 {[%clk 0:00:58]}  Qb4 {[%clk 0:00:40]} 47. Qg3+ {[%clk 0:00:58]}  Kh7 {[%clk 0:00:40]} 48. Qd3+ {[%clk 0:00:57]}  Kg7 {[%clk 0:00:40]} 49. Qg3+ {[%clk 0:00:57]}  Kf8 {[%clk 0:00:35]} 50. Qe3 {[%clk 0:00:51]}  Qxa4 {[%clk 0:00:31]} 51. Qxh6+ {[%clk 0:00:51]}  Ke7 {[%clk 0:00:32]} 52. Qe3+ {[%clk 0:00:51]}  Kd6 {[%clk 0:00:31]} 53. Qg3+ {[%clk 0:00:47]}  Ke6 {[%clk 0:00:30]} 54. h4 {[%clk 0:00:47]}  Qd4+ {[%clk 0:00:30]} 55. Kf1 {[%clk 0:00:35]}  Qd1+ {[%clk 0:00:28]} 56. Kf2 {[%clk 0:00:35]}  Qd2+ {[%clk 0:00:27]} 57. Kf1 {[%clk 0:00:35]}  Qd1+ {[%clk 0:00:26]} 58. Kf2 {[%clk 0:00:35]}  a4 {[%clk 0:00:20]} 59. Qe3+ {[%clk 0:00:32]}  Kf5 {[%clk 0:00:19]} 60. Qc5+ {[%clk 0:00:28]}  Kg6 {[%clk 0:00:18]} 61. Kg3 {[%clk 0:00:21]}  Qb3+ {[%clk 0:00:16]} 62. Kh2 {[%clk 0:00:20]}  a3 {[%clk 0:00:17]} 63. h5+ {[%clk 0:00:20]}  Kg7 {[%clk 0:00:15]} 64. Qf5 {[%clk 0:00:21]}  a2 {[%clk 0:00:14]} 65. h6+ {[%clk 0:00:21]}  Kxh6 {[%clk 0:00:13]} 66. Qxf6+ {[%clk 0:00:22]}  Kh7 {[%clk 0:00:13]} 67. Qh4+ {[%clk 0:00:21]}  Kg7 {[%clk 0:00:13]} 68. Qg5+ {[%clk 0:00:22]}  Kf8 {[%clk 0:00:14]} 69. Qd8+ {[%clk 0:00:22]}  Kg7 {[%clk 0:00:14]} 70. Qg5+ {[%clk 0:00:22]}  Kh7 {[%clk 0:00:15]} 71. Qh5+ {[%clk 0:00:22]}  Kg8 {[%clk 0:00:15]} 72. Qg5+ {[%clk 0:00:22]}  Kh8 {[%clk 0:00:16]} 73. Qh5+ {[%clk 0:00:21]}  Kg7 {[%clk 0:00:16]} 74. Qg5+ {[%clk 0:00:21]} 1/2-1/2


[Site "https://www.chess.com"]

[Event "Titled Tuesday Blitz June 6 Late 2023"]
[White "Zenin, Dmitry"]
[Black "Domingo Nunez, Ruben"]
[WhiteFideId "4127897"]
[BlackFideId "22245570"]
[WhiteElo "2215"]
[BlackElo "2404"]
[Result "0-1"]
[Round "4"]
[TimeControl "180+2"]
[Date "2023.06.07"]
[WhiteClock "0:00:59"]
[BlackClock "0:00:57"]
[Board "108"]

1. d4 {[%clk 0:03:00]}  b5 {[%clk 0:02:59]} 2. e4 {[%clk 0:02:57]}  Bb7 {[%clk 0:02:54]} 3. Bxb5 {[%clk 0:02:46]}  Bxe4 {[%clk 0:02:54]} 4. Nf3 {[%clk 0:02:46]}  c6 {[%clk 0:02:55]} 5. Bd3 {[%clk 0:02:43]}  Bxf3 {[%clk 0:02:49]} 6. Qxf3 {[%clk 0:02:43]}  d5 {[%clk 0:02:50]} 7. O-O {[%clk 0:02:38]}  e6 {[%clk 0:02:50]} 8. Bf4 {[%clk 0:02:34]}  Bd6 {[%clk 0:02:50]} 9. Nd2 {[%clk 0:02:20]}  Nf6 {[%clk 0:02:48]} 10. Nb3 {[%clk 0:02:14]}  Qc7 {[%clk 0:02:42]} 11. Bxd6 {[%clk 0:02:11]}  Qxd6 {[%clk 0:02:43]} 12. Rfe1 {[%clk 0:02:03]}  O-O {[%clk 0:02:42]} 13. Rac1 {[%clk 0:02:01]}  Nbd7 {[%clk 0:02:05]} 14. c4 {[%clk 0:02:00]}  Rfc8 {[%clk 0:02:03]} 15. Qg3 {[%clk 0:01:50]}  Qb4 {[%clk 0:01:59]} 16. Rc3 {[%clk 0:01:34]}  a5 {[%clk 0:01:32]} 17. Re2 {[%clk 0:01:14]}  a4 {[%clk 0:01:30]} 18. a3 {[%clk 0:00:59]}  axb3 {[%clk 0:00:57]} 0-1


[Site "https://www.chess.com"]

[Event "Titled Tuesday Blitz June 6 Late 2023"]
[White "Spata, German"]
[Black "Ai, Evan"]
[WhiteFideId "113026"]
[BlackFideId "2094770"]
[WhiteElo "2260"]
[BlackElo "1963"]
[Result "0-1"]
[Round "4"]
[TimeControl "180+2"]
[Date "2023.06.07"]
[WhiteClock "0:00:57"]
[BlackClock "0:01:41"]
[Board "112"]

1. Nc3 {[%clk 0:03:00]}  d5 {[%clk 0:02:58]} 2. e4 {[%clk 0:02:57]}  d4 {[%clk 0:02:58]} 3. Nce2 {[%clk 0:02:57]}  e5 {[%clk 0:02:57]} 4. Ng3 {[%clk 0:02:57]}  g6 {[%clk 0:02:56]} 5. Bc4 {[%clk 0:02:57]}  h5 {[%clk 0:02:52]} 6. d3 {[%clk 0:02:54]}  h4 {[%clk 0:02:52]} 7. Nf1 {[%clk 0:02:54]}  Nf6 {[%clk 0:02:45]} 8. f4 {[%clk 0:02:53]}  Bg4 {[%clk 0:02:44]} 9. Nf3 {[%clk 0:02:52]}  h3 {[%clk 0:02:44]} 10. g3 {[%clk 0:02:50]}  Nbd7 {[%clk 0:02:39]} 11. Qe2 {[%clk 0:02:33]}  Nh5 {[%clk 0:02:37]} 12. Bd2 {[%clk 0:02:19]}  exf4 {[%clk 0:02:37]} 13. gxf4 {[%clk 0:02:19]}  Bh6 {[%clk 0:02:36]} 14. O-O-O {[%clk 0:02:10]}  Nxf4 {[%clk 0:02:29]} 15. Qf2 {[%clk 0:02:07]}  Qf6 {[%clk 0:02:18]} 16. Kb1 {[%clk 0:01:39]}  Nxd3 {[%clk 0:01:50]} 17. cxd3 {[%clk 0:01:27]}  Qxf3 {[%clk 0:01:49]} 18. Qxf3 {[%clk 0:00:58]}  Bxf3 {[%clk 0:01:49]} 19. Bxh6 {[%clk 0:00:56]}  Rxh6 {[%clk 0:01:47]} 20. Ng3 {[%clk 0:00:57]}  Bxh1 {[%clk 0:01:42]} 21. Rxh1 {[%clk 0:00:57]}  Ne5 {[%clk 0:01:41]} 0-1


[Site "https://www.chess.com"]

[Event "Titled Tuesday Blitz June 6 Late 2023"]
[White "Martinez Reyes, Pedro Ramon"]
[Black "Smiechu"]
[WhiteFideId "3901807"]
[WhiteElo "2340"]
[BlackElo "2378"]
[Result "0-1"]
[Round "4"]
[TimeControl "180+2"]
[Date "2023.06.07"]
[WhiteClock "0:00:51"]
[BlackClock "0:00:10"]
[Board "113"]

1. g4 {[%clk 0:03:00]}  e5 {[%clk 0:02:54]} 2. Bg2 {[%clk 0:02:59]}  Nc6 {[%clk 0:02:54]} 3. d3 {[%clk 0:02:59]}  Bc5 {[%clk 0:02:54]} 4. Nc3 {[%clk 0:02:58]}  d6 {[%clk 0:02:54]} 5. e3 {[%clk 0:02:56]}  Nf6 {[%clk 0:02:52]} 6. h3 {[%clk 0:02:56]}  Be6 {[%clk 0:02:51]} 7. a3 {[%clk 0:02:56]}  Bb6 {[%clk 0:02:51]} 8. Na4 {[%clk 0:02:55]}  h5 {[%clk 0:02:45]} 9. g5 {[%clk 0:02:55]}  Nd7 {[%clk 0:02:45]} 10. h4 {[%clk 0:02:43]}  O-O {[%clk 0:02:37]} 11. Qxh5 {[%clk 0:02:42]}  Nc5 {[%clk 0:02:31]} 12. Nxb6 {[%clk 0:02:40]}  axb6 {[%clk 0:02:30]} 13. Ne2 {[%clk 0:02:40]}  Qd7 {[%clk 0:02:29]} 14. f3 {[%clk 0:02:29]}  Ne7 {[%clk 0:02:14]} 15. Ng3 {[%clk 0:02:23]}  d5 {[%clk 0:01:42]} 16. Bd2 {[%clk 0:02:18]}  Na4 {[%clk 0:01:25]} 17. b3 {[%clk 0:02:15]}  Nc5 {[%clk 0:01:22]} 18. a4 {[%clk 0:02:12]}  d4 {[%clk 0:01:06]} 19. e4 {[%clk 0:02:11]}  b5 {[%clk 0:01:02]} 20. a5 {[%clk 0:02:11]}  b6 {[%clk 0:00:55]} 21. Ke2 {[%clk 0:02:11]}  bxa5 {[%clk 0:00:50]} 22. Rxa5 {[%clk 0:02:11]}  Rxa5 {[%clk 0:00:49]} 23. Bxa5 {[%clk 0:02:12]}  Ng6 {[%clk 0:00:43]} 24. Bd2 {[%clk 0:02:10]}  Qc6 {[%clk 0:00:40]} 25. Nf5 {[%clk 0:02:09]}  Re8 {[%clk 0:00:13]} 26. Qg4 {[%clk 0:02:03]}  Nxb3 {[%clk 0:00:10]} 27. cxb3 {[%clk 0:02:01]}  Qc2 {[%clk 0:00:10]} 28. h5 {[%clk 0:01:59]}  Nf4+ {[%clk 0:00:10]} 29. Qxf4 {[%clk 0:01:05]}  exf4 {[%clk 0:00:10]} 30. Rc1 {[%clk 0:01:05]}  Qb2 {[%clk 0:00:09]} 31. Nh4 {[%clk 0:01:01]}  Ra8 {[%clk 0:00:09]} 32. g6 {[%clk 0:00:57]}  Ra2 {[%clk 0:00:09]} 33. gxf7+ {[%clk 0:00:58]}  Bxf7 {[%clk 0:00:09]} 34. Rd1 {[%clk 0:00:59]}  Bxb3 {[%clk 0:00:09]} 35. Bh3 {[%clk 0:00:46]}  Bxd1+ {[%clk 0:00:08]} 36. Kf1 {[%clk 0:00:46]}  Qxd2 {[%clk 0:00:09]} 37. Be6+ {[%clk 0:00:47]}  Kf8 {[%clk 0:00:09]} 38. Bxa2 {[%clk 0:00:48]}  Qe2+ {[%clk 0:00:08]} 39. Kg1 {[%clk 0:00:48]}  Qxa2 {[%clk 0:00:09]} 40. Ng6+ {[%clk 0:00:48]}  Ke8 {[%clk 0:00:08]} 41. Nxf4 {[%clk 0:00:49]}  Qd2 {[%clk 0:00:08]} 42. h6 {[%clk 0:00:47]}  Qxf4 {[%clk 0:00:07]} 43. h7 {[%clk 0:00:47]}  Qh4 {[%clk 0:00:07]} 44. h8=Q+ {[%clk 0:00:47]}  Qxh8 {[%clk 0:00:08]} 45. e5 {[%clk 0:00:48]}  Qh5 {[%clk 0:00:08]} 46. e6 {[%clk 0:00:48]}  Bxf3 {[%clk 0:00:08]} 47. e7 {[%clk 0:00:48]}  Qg4+ {[%clk 0:00:08]} 48. Kf2 {[%clk 0:00:49]}  Qf4 {[%clk 0:00:09]} 49. Ke1 {[%clk 0:00:50]}  Qe3+ {[%clk 0:00:08]} 50. Kf1 {[%clk 0:00:51]}  Qe2+ {[%clk 0:00:09]} 51. Kg1 {[%clk 0:00:51]}  Qg2# {[%clk 0:00:10]} 0-1


[Site "https://www.chess.com"]